fUSD/lending_fUSD_20240825
["ID","MTS","AMOUNT","RATE_DAILY","PERIOD"]
[335880291,1724567482410,-500.0,0.00010998,2]
[335880292,1724567482419,-500.0,0.00010998,2]
[335880293,1724567482428,-597.06758881,0.00010998,2]
[335880294,1724567482437,-500.0,0.00010998,2]
[335880295,1724567482447,-500.0,0.00010998,2]
[335880296,1724567482456,-500.0,0.00010998,2]
[335880297,1724567482465,-500.0,0.00010998,2]
[335880298,1724567482475,-500.0,0.00010998,2]
[335880299,1724567482485,-500.0,0.00010998,2]
[335880300,1724567482494,-500.0,0.00010998,2]
[335880301,1724567482503,-151.0,0.00010998,2]
[335880302,1724567482513,-500.0,0.00010998,2]
[335880303,1724567482523,-500.0,0.00010998,2]
[335880304,1724567482532,-151.0,0.00010998,2]
[335880305,1724567482542,-151.0,0.00010998,2]
[335880306,1724567482551,-371.43936,0.00010998,2]
[335880307,1724567482560,-151.0,0.00010998,2]
[335880308,1724567482570,-500.0,0.00010998,2]
[335880309,1724567482579,-371.43936,0.00010998,2]
[335880310,1724567482588,-371.43936,0.00010998,2]
[335880311,1724567482597,-371.43936,0.00010998,2]
[335880312,1724567482606,-500.0,0.00010998,2]
[335880313,1724567482615,-500.0,0.00010998,2]
[335880314,1724567482627,-427.79415681,0.00010998,2]
[335880315,1724567482636,-326.55313201,0.00010998,2]
[335880316,1724567482984,-173.44686799,0.00010998,2]
[335880317,1724567482993,-189.23720732,0.00010998,2]
[335880318,1724567483021,-626.02292641,0.00010997,2]
[335880319,1724567483033,-95.56707359,0.00010997,2]
[335880320,1724567483044,-421.07169696,0.00010997,2]
[335880321,1724567483057,-319.0,0.00010997,2]
[335880322,1724567483068,-149.84830304,0.00010997,2]
[335880323,1724567483079,-202.53366688,0.00010998,2]
[335880324,1724567483091,-108.2291258,0.00010998,2]
[335880325,1724567483101,-500.0,0.00010998,2]
[335880326,1724567483113,-371.43936,0.00010998,2]
[335880327,1724567483123,-500.0,0.00010998,2]
[335880328,1724567483134,-500.0,0.00010998,2]
[335880329,1724567483143,-371.43936,0.00010998,2]
[335880330,1724567483152,-500.0,0.00010998,2]
[335880331,1724567483162,-500.0,0.00010998,2]
[335880332,1724567483171,-371.43936,0.00010998,2]
[335880333,1724567483180,-233.459327,0.00010998,2]
[335880334,1724567483189,-500.0,0.00010998,2]
[335880335,1724567483199,-233.459327,0.00010998,2]
[335880336,1724567483208,-371.43936,0.00010998,2]
[335880337,1724567483217,-233.459327,0.00010998,2]
[335880338,1724567483227,-233.459327,0.00010998,2]
[335880339,1724567483236,-438.222571,0.00010998,2]
[335880340,1724567483245,-151.0,0.00010998,2]
[335880341,1724567483254,-151.0,0.00010998,2]
[335880342,1724567483264,-438.222571,0.00010998,2]
[335880343,1724567483274,-151.0,0.00010998,2]
[335880344,1724567483284,-438.222571,0.00010998,2]
[335880345,1724567483293,-241.144375,0.00010998,2]
[335880346,1724567483303,-500.0,0.00010998,2]
[335880347,1724567483313,-500.0,0.00010998,2]
[335880348,1724567483322,-233.459327,0.00010998,2]
[335880349,1724567483332,-500.0,0.00010998,2]
[335880350,1724567483342,-500.0,0.00010998,2]
[335880351,1724567483352,-233.459327,0.00010998,2]
[335880352,1724567483361,-500.0,0.00010998,2]
[335880353,1724567483372,-233.459327,0.00010998,2]
[335880354,1724567483381,-500.0,0.00010998,2]
[335880355,1724567483390,-233.459327,0.00010998,2]
[335880356,1724567483399,-500.0,0.00010998,2]
[335880357,1724567483409,-505.2245774,0.00010998,2]
[335880358,1724567483418,-151.0,0.00010998,2]
[335880359,1724567483427,-151.593271,0.00010998,2]
[335880360,1724567483436,-438.222571,0.00010998,2]
[335880361,1724567483446,-151.0,0.00010998,2]
[335880362,1724567483455,-438.222571,0.00010998,2]
[335880363,1724567483464,-151.0,0.00010998,2]
[335880364,1724567483473,-438.222571,0.00010998,2]
[335880365,1724567483485,-152.160665,0.00010998,2]
[335880366,1724567483494,-1476.39,0.00010998,2]
[335880367,1724567483504,-1476.39,0.00010998,2]
[335880368,1724567483513,-400.0,0.00010998,2]
[335880369,1724567483522,-1476.39,0.00010998,2]
[335880370,1724567483531,-400.0,0.00010998,2]
[335880371,1724567483541,-979.82,0.00010998,2]
[335880372,1724567483550,-400.0,0.00010998,2]
[335880373,1724567483559,-979.82,0.00010998,2]
[335880374,1724567483568,-1476.39,0.00010998,2]
[335880375,1724567483576,-979.82,0.00010998,2]
[335880376,1724567483586,-400.0,0.00010998,2]
[335880377,1724567483595,-111.9046562,0.00010998,2]
[335880378,1724567483608,-1364.4853438,0.00010998,2]
[335880379,1724567483617,-979.82,0.00010998,2]
[335880380,1724567483627,-400.0,0.00010998,2]
[335880381,1724567483636,-1476.39,0.00010998,2]
[335880382,1724567483645,-500.0,0.00010998,2]
[335880383,1724567483654,-400.0,0.00010998,2]
[335880384,1724567483663,-979.82,0.00010998,2]
[335880385,1724567483672,-1476.39,0.00010998,2]
[335880386,1724567483681,-400.0,0.00010998,2]
[335880387,1724567483691,-409.0865007,0.00010998,2]
[335880388,1724567483704,-570.7334993,0.00010998,2]
[335880389,1724567483714,-493.99650071,0.00010998,2]
[335880390,1724567483725,-6.00349929,0.00010998,2]
[335880391,1724567483734,-1476.39,0.00010998,2]
[335880392,1724567483744,-400.0,0.00010998,2]
[335880393,1724567483753,-979.82,0.00010998,2]
[335880394,1724567483762,-500.0,0.00010998,2]
[335880395,1724567483771,-979.82,0.00010998,2]
[335880396,1724567483783,-500.0,0.00010998,2]
[335880397,1724567483792,-979.82,0.00010998,2]
[335880398,1724567483801,-500.0,0.00010998,2]
[335880399,1724567483810,-979.82,0.00010998,2]
[335880400,1724567483819,-500.0,0.00010998,2]
[335880401,1724567483828,-500.0,0.00010998,2]
[335880402,1724567483838,-712.584597,0.00010998,2]
[335880403,1724567483847,-712.584597,0.00010998,2]
[335880404,1724567483856,-712.584597,0.00010998,2]
[335880405,1724567483865,-712.584597,0.00010998,2]
[335880406,1724567483875,-629.77,0.00010998,2]
[335880407,1724567483885,-629.77,0.00010998,2]
[335880408,1724567483894,-294.54811272,0.00010998,2]
[335880409,1724567483906,-335.22188728,0.00010998,2]
[335880410,1724567483916,-712.584597,0.00010998,2]
[335880411,1724567483925,-629.77,0.00010998,2]
[335880412,1724567483934,-712.584597,0.00010998,2]
[335880413,1724567483943,-629.77,0.00010998,2]
[335880414,1724567483952,-712.584597,0.00010998,2]
[335880415,1724567483962,-629.77,0.00010998,2]
[335880416,1724567483971,-712.584597,0.00010998,2]
[335880417,1724567483981,-629.77,0.00010998,2]
[335880418,1724567483990,-500.0,0.00010998,2]
[335880419,1724567483999,-500.0,0.00010998,2]
[335880420,1724567484008,-629.77,0.00010998,2]
[335880421,1724567484017,-500.0,0.00010998,2]
[335880422,1724567484026,-500.0,0.00010998,2]
[335880423,1724567484035,-500.0,0.00010998,2]
[335880424,1724567484044,-500.0,0.00010998,2]
[335880425,1724567484053,-506.3198696,0.00010998,2]
[335880426,1724567484062,-500.0,0.00010998,2]
[335880427,1724567484071,-500.0,0.00010998,2]
[335880428,1724567484080,-500.0,0.00010998,2]
[335880429,1724567484090,-500.0,0.00010998,2]
[335880430,1724567484101,-500.0,0.00010998,2]
[335880431,1724567484111,-500.0,0.00010998,2]
[335880432,1724567484120,-500.0,0.00010998,2]
[335880433,1724567484129,-500.0,0.00010998,2]
[335880434,1724567484138,-500.0,0.00010998,2]
[335880435,1724567484148,-500.0,0.00010998,2]
[335880436,1724567484159,-500.0,0.00010998,2]
[335880437,1724567484169,-500.0,0.00010998,2]
[335880438,1724567484179,-500.0,0.00010998,2]
[335880439,1724567484190,-500.0,0.00010998,2]
[335880440,1724567484201,-500.0,0.00010998,2]
[335880441,1724567484210,-500.0,0.00010998,2]
[335880442,1724567484223,-500.0,0.00010998,2]
[335880443,1724567484232,-500.0,0.00010998,2]
[335880444,1724567484241,-500.0,0.00010998,2]
[335880445,1724567484252,-500.0,0.00010998,2]
[335880446,1724567484261,-500.0,0.00010998,2]
[335880447,1724567484270,-500.0,0.00010998,2]
[335880448,1724567484279,-159.18052376,0.00010998,2]
[335880449,1724567484291,-340.81947624,0.00010998,2]
[335880450,1724567484300,-500.0,0.00010998,2]
[335880451,1724567484310,-500.0,0.00010998,2]
[335880452,1724567484319,-500.0,0.00010998,2]
[335880453,1724567484328,-151.0,0.00010998,2]
[335880454,1724567484337,-500.0,0.00010998,2]
[335880455,1724567484346,-151.0,0.00010998,2]
[335880456,1724567484355,-151.0,0.00010998,2]
[335880457,1724567484364,-151.0,0.00010998,2]
[335880458,1724567484374,-500.0,0.00010998,2]
[335880459,1724567484383,-500.0,0.00010998,2]
[335880460,1724567484392,-500.0,0.00010998,2]
[335880461,1724567484401,-500.0,0.00010998,2]
[335880462,1724567484410,-500.0,0.00010998,2]
[335880463,1724567484420,-500.0,0.00010998,2]
[335880464,1724567484429,-500.0,0.00010998,2]
[335880465,1724567484438,-500.0,0.00010998,2]
[335880466,1724567484447,-500.0,0.00010998,2]
[335880467,1724567484456,-231.26889797,0.00010998,2]
[335880468,1724567484465,-500.0,0.00010998,2]
[335880469,1724567484474,-500.0,0.00010998,2]
[335880470,1724567484483,-500.0,0.00010998,2]
[335880471,1724567484492,-500.0,0.00010998,2]
[335880472,1724567484501,-500.0,0.00010998,2]
[335880473,1724567484512,-500.0,0.00010998,2]
[335880474,1724567484521,-500.0,0.00010998,2]
[335880475,1724567484530,-500.0,0.00010998,2]
[335880476,1724567484539,-500.0,0.00010998,2]
[335880477,1724567484548,-500.0,0.00010998,2]
[335880478,1724567484557,-500.0,0.00010998,2]
[335880479,1724567484566,-500.0,0.00010998,2]
[335880480,1724567484574,-1014.83,0.00010998,2]
[335880481,1724567484583,-1014.83,0.00010998,2]
[335880482,1724567484593,-500.0,0.00010998,2]
[335880483,1724567484602,-500.0,0.00010998,2]
[335880484,1724567484611,-1014.83,0.00010998,2]
[335880485,1724567484620,-500.0,0.00010998,2]
[335880486,1724567484628,-500.0,0.00010998,2]
[335880487,1724567484638,-1014.83,0.00010998,2]
[335880488,1724567484647,-500.0,0.00010998,2]
[335880489,1724567484656,-500.0,0.00010998,2]
[335880490,1724567484665,-1014.83,0.00010998,2]
[335880491,1724567484674,-500.0,0.00010998,2]
[335880492,1724567484683,-500.0,0.00010998,2]
[335880493,1724567484693,-1014.83,0.00010998,2]
[335880494,1724567484702,-500.0,0.00010998,2]
[335880495,1724567484711,-500.0,0.00010998,2]
[335880496,1724567484721,-1014.83,0.00010998,2]
[335880497,1724567484730,-500.0,0.00010998,2]
[335880498,1724567484741,-1014.83,0.00010998,2]
[335880499,1724567484750,-500.0,0.00010998,2]
[335880500,1724567484759,-151.0,0.00010998,2]
[335880501,1724567484771,-500.0,0.00010998,2]
[335880502,1724567484779,-500.0,0.00010998,2]
[335880503,1724567484788,-151.0,0.00010998,2]
[335880504,1724567484799,-156.90194314,0.00010998,2]
[335880505,1724567484807,-1144.58,0.00010998,2]
[335880506,1724567484816,-151.0,0.00010998,2]
[335880507,1724567484825,-1144.58,0.00010998,2]
[335880508,1724567484835,-151.0,0.00010998,2]
[335880509,1724567484844,-1144.58,0.00010998,2]
[335880510,1724567484853,-1144.58,0.00010998,2]
[335880511,1724567484863,-145.90663004,0.00010998,2]
[335880512,1724567487153,949.37448982,9.962e-05,2]
[335880513,1724567487334,5950.0,0.0001,2]
[335880514,1724567488511,155.0,9.962e-05,2]
[335880515,1724567489205,500.0,8.22e-05,2]
[335880516,1724567508057,158.18729385,8.22e-05,2]
[335880517,1724567513812,500.0,8.22e-05,2]
[335880518,1724567523245,162.44760627,9.963e-05,2]
[335880519,1724567523843,197.23721453,9.963e-05,2]
[335880520,1724567532736,155.0,9.963e-05,2]
[335880521,1724567542695,1030.71887721,9.963e-05,2]
[335880523,1724567949179,218.57,8.219e-05,2]
[335880524,1724568012045,1248.0735285,9.962e-05,2]
[335880525,1724568110757,156.19,9.98e-05,2]
[335880526,1724568121719,362.72,9.976e-05,2]
[335880528,1724568259686,500.0,8.22e-05,2]
[335880529,1724568284700,500.0,8.22e-05,2]
[335880530,1724568296329,1066.89,9.963e-05,2]
[335880531,1724568310662,155.41952223,9.963e-05,2]
[335880532,1724568310787,5727.70877493,9.963e-05,2]
[335880533,1724568315040,518.10208987,9.963e-05,2]
[335880534,1724568317330,155.0,9.963e-05,2]
[335880535,1724568317743,155.39645058,9.963e-05,2]
[335880536,1724568319898,4323.02748956,9.963e-05,2]
[335880537,1724568322961,1263.98569466,0.0001,2]
[335880538,1724568323018,1276.46550139,9.963e-05,2]
[335880539,1724568334369,535.234653,9.963e-05,2]
[335880541,1724568409413,628.95048865,0.00010009,2]
[335880552,1724568456717,476.74,9.942e-05,2]
[335880555,1724568516712,295.76,8.219e-05,2]
[335880564,1724568542907,200.0,9.938e-05,2]
[335880566,1724568561759,1369.98,9.929e-05,2]
[335880568,1724568583789,172.18,9.927e-05,2]
[335880569,1724568586062,236.62872875,0.00010009,2]
[335880570,1724568589175,250.0,9.927e-05,2]
[335880571,1724568598693,805.86046979,9.926e-05,2]
[335880572,1724568598717,167.63655556,9.926e-05,2]
[335880573,1724568598740,167.63655556,9.926e-05,2]
[335880574,1724568598760,107.12759811,9.926e-05,2]
[335880575,1724568622613,162.72099212,9.903e-05,2]
[335880576,1724568622636,14.79900788,9.903e-05,2]
[335880579,1724568631368,-1140.4755335,0.00010009,2]
[335880580,1724568631379,-892.62032859,0.00010026,2]
[335880581,1724568631389,-637.28,0.00010114,2]
[335880582,1724568631399,-162.54,0.00010162,2]
[335880583,1724568631410,-203.65661635,0.00010471,2]
[335880584,1724568631421,-295.76,0.00010473,2]
[335880585,1724568631433,-601.47492409,0.00010505,2]
[335880586,1724568631442,-155.0,0.00010566,2]
[335880587,1724568631453,-155.0,0.00010566,2]
[335880588,1724568631464,-162.673922,0.00010573,2]
[335880589,1724568631473,-264.59551731,0.00010699,2]
[335880590,1724568631482,-164.60149629,0.00010713,2]
[335880591,1724568631491,-501.46983759,0.00010799,2]
[335880592,1724568631517,-255.97559429,0.00010799,2]
[335880593,1724568631701,-151.22456812,0.00010799,2]
[335880595,1724568631710,-155.96653042,0.000108,2]
[335880597,1724568631722,-307.58,0.000108,2]
[335880599,1724568631741,-150.99,0.00010852,2]
[335880601,1724568631750,-150.0,0.00010857,2]
[335880603,1724568631759,-300.0,0.00010857,2]
[335880605,1724568631769,-4352.05408578,0.00010858,2]
[335880607,1724568631779,-4066.66721422,0.00010858,2]
[335880609,1724568631789,-213.6247,0.00010858,2]
[335880611,1724568631799,-1000.0,0.00010858,2]
[335880613,1724568631808,-166.2887,0.00010858,2]
[335880615,1724568631817,-13761.26945964,0.00010858,2]
[335880625,1724568637549,-8436.90292325,0.00010858,2]
[335880626,1724568637560,-601.51186436,0.00010858,2]
[335880627,1724568637673,-302.5407008,0.00010858,2]
[335880628,1724568637685,-7442.11755195,0.00010858,2]
[335880629,1724568637695,-346.3498,0.00010858,2]
[335880630,1724568637704,-25531.3787,0.00010858,2]
[335880631,1724568637715,-1171.4532,0.00010858,2]
[335880632,1724568637724,-17210.47652165,0.00010888,2]
[335880633,1724568637733,-2226.81,0.0001089,2]
[335880634,1724568637742,-183.41939422,0.00010896,2]
[335880635,1724568637751,-172.70431108,0.00010897,2]
[335880636,1724568637761,-150.99,0.00010898,2]
[335880637,1724568637770,-155.0,0.00010899,2]
[335880638,1724568637782,-172.70431108,0.000109,2]
[335880639,1724568637792,-150.0,0.000109,2]
[335880640,1724568637802,-183.41939422,0.000109,2]
[335880641,1724568637812,-161.22837339,0.000109,2]
[335880642,1724568637821,-161.22837334,0.000109,2]
[335880643,1724568637831,-161.22837334,0.000109,2]
[335880644,1724568637841,-161.22837334,0.000109,2]
[335880645,1724568637850,-161.22837334,0.000109,2]
[335880646,1724568637861,-161.22837334,0.000109,2]
[335880647,1724568637871,-500.0,0.00010958,2]
[335880648,1724568637882,-500.0,0.00010958,2]
[335880649,1724568637891,-500.0,0.00010958,2]
[335880650,1724568637901,-500.0,0.00010958,2]
[335880651,1724568637910,-500.0,0.00010958,2]
[335880652,1724568637920,-500.0,0.00010958,2]
[335880653,1724568637930,-500.0,0.00010958,2]
[335880654,1724568637940,-80.56464708,0.00010958,2]
[335880655,1724568637952,-392.67304101,0.00010958,2]
[335880656,1724568637969,-26.76231191,0.00010958,2]
[335880657,1724568637978,-500.0,0.00010958,2]
[335880658,1724568637987,-500.0,0.00010958,2]
[335880659,1724568637997,-500.0,0.00010958,2]
[335880660,1724568638006,-500.0,0.00010958,2]
[335880662,1724568638015,-506.00006581,0.00010958,2]
[335880664,1724568638025,-500.0,0.00010958,2]
[335880666,1724568638034,-500.0,0.00010958,2]
[335880668,1724568638043,-500.0,0.00010958,2]
[335880670,1724568638052,-500.0,0.00010958,2]
[335880672,1724568638061,-500.0,0.00010958,2]
[335880674,1724568638072,-507.36841088,0.00010958,2]
[335880676,1724568638085,-500.0,0.00010958,2]
[335880678,1724568638094,-500.0,0.00010958,2]
[335880680,1724568638103,-500.0,0.00010958,2]
[335880681,1724568638112,-500.0,0.00010958,2]
[335880682,1724568638123,-500.0,0.00010958,2]
[335880684,1724568638132,-500.0,0.00010958,2]
[335880685,1724568638141,-500.0,0.00010958,2]
[335880686,1724568638150,-500.0,0.00010958,2]
[335880687,1724568638161,-500.0,0.00010958,2]
[335880688,1724568638171,-500.0,0.00010958,2]
[335880689,1724568638182,-500.0,0.00010958,2]
[335880690,1724568638193,-500.0,0.00010958,2]
[335880691,1724568638203,-500.0,0.00010958,2]
[335880692,1724568638212,-500.0,0.00010958,2]
[335880693,1724568638221,-500.0,0.00010958,2]
[335880694,1724568638230,-500.0,0.00010958,2]
[335880695,1724568638239,-500.0,0.00010958,2]
[335880696,1724568638249,-500.0,0.00010958,2]
[335880697,1724568638259,-216.10067728,0.00010958,2]
[335880698,1724568638269,-500.0,0.00010958,2]
[335880699,1724568638278,-500.0,0.00010958,2]
[335880700,1724568638288,-500.0,0.00010958,2]
[335880701,1724568638297,-500.0,0.00010958,2]
[335880702,1724568638306,-500.0,0.00010958,2]
[335880703,1724568638315,-99.25900326,0.00010958,2]
[335880704,1724568638329,-400.74099674,0.00010958,2]
[335880705,1724568638338,-500.0,0.00010958,2]
[335880706,1724568638347,-64.18064642,0.00010958,2]
[335880707,1724568638398,-435.81935358,0.00010958,2]
[335880708,1724568638407,-500.0,0.00010958,2]
[335880709,1724568638416,-500.0,0.00010958,2]
[335880710,1724568638425,-422.60862042,0.00010958,2]
[335880711,1724568638437,-77.39137958,0.00010958,2]
[335880712,1724568638445,-426.96004252,0.00010958,2]
[335880715,1724568639592,-709.82,0.00010043,2]
[335880716,1724568639602,-150.0,0.0001081,2]
[335880717,1724568639611,-73.03995748,0.00010958,2]
[335880718,1724568639620,-500.0,0.00010958,2]
[335880719,1724568639629,-500.0,0.00010958,2]
[335880720,1724568639639,-500.0,0.00010958,2]
[335880721,1724568639648,-500.0,0.00010958,2]
[335880722,1724568639657,-500.0,0.00010958,2]
[335880723,1724568639666,-500.0,0.00010958,2]
[335880724,1724568639675,-500.0,0.00010958,2]
[335880725,1724568639684,-500.0,0.00010958,2]
[335880726,1724568639693,-530.4,0.00010958,2]
[335880727,1724568639702,-530.4,0.00010958,2]
[335880728,1724568639711,-500.0,0.00010958,2]
[335880729,1724568639721,-632.13836119,0.00010958,2]
[335880730,1724568639731,-500.0,0.00010958,2]
[335880731,1724568639740,-500.0,0.00010958,2]
[335880732,1724568639751,-896.02,0.00010958,2]
[335880733,1724568639761,-896.02,0.00010958,2]
[335880734,1724568639771,-500.0,0.00010958,2]
[335880735,1724568639780,-500.0,0.00010958,2]
[335880736,1724568639789,-500.0,0.00010958,2]
[335880737,1724568639798,-500.0,0.00010958,2]
[335880738,1724568639807,-500.0,0.00010958,2]
[335880739,1724568639816,-500.0,0.00010958,2]
[335880740,1724568639827,-500.0,0.00010958,2]
[335880741,1724568639836,-500.0,0.00010958,2]
[335880742,1724568639845,-500.0,0.00010958,2]
[335880743,1724568639854,-500.0,0.00010958,2]
[335880744,1724568639864,-500.0,0.00010958,2]
[335880745,1724568639873,-500.0,0.00010958,2]
[335880746,1724568639883,-500.0,0.00010958,2]
[335880747,1724568639892,-500.0,0.00010958,2]
[335880748,1724568639902,-500.0,0.00010958,2]
[335880749,1724568639914,-500.0,0.00010958,2]
[335880750,1724568639924,-500.0,0.00010958,2]
[335880751,1724568639933,-500.0,0.00010958,2]
[335880752,1724568639942,-500.0,0.00010958,2]
[335880753,1724568639951,-500.0,0.00010958,2]
[335880754,1724568639961,-500.0,0.00010958,2]
[335880755,1724568639972,-500.0,0.00010958,2]
[335880756,1724568639981,-648.42,0.00010958,2]
[335880757,1724568639990,-648.42,0.00010958,2]
[335880758,1724568639999,-412.70273803,0.00010958,2]
[335880759,1724568640008,-500.0,0.00010958,2]
[335880760,1724568640017,-500.0,0.00010958,2]
[335880761,1724568640026,-500.0,0.00010958,2]
[335880762,1724568640035,-500.0,0.00010958,2]
[335880764,1724568640044,-658.19,0.00010958,2]
[335880765,1724568640053,-658.19,0.00010958,2]
[335880766,1724568640063,-500.0,0.00010958,2]
[335880767,1724568640072,-500.0,0.00010958,2]
[335880768,1724568640085,-500.0,0.00010958,2]
[335880769,1724568640094,-500.0,0.00010958,2]
[335880770,1724568640103,-661.35,0.00010958,2]
[335880771,1724568640113,-661.35,0.00010958,2]
[335880772,1724568640123,-738.88,0.00010958,2]
[335880773,1724568640132,-738.88,0.00010958,2]
[335880774,1724568640141,-500.0,0.00010958,2]
[335880775,1724568640152,-500.0,0.00010958,2]
[335880776,1724568640161,-568.39,0.00010958,2]
[335880777,1724568640170,-568.39,0.00010958,2]
[335880778,1724568640179,-500.0,0.00010958,2]
[335880779,1724568640189,-500.0,0.00010958,2]
[335880780,1724568640198,-565.53,0.00010958,2]
[335880781,1724568640208,-565.53,0.00010958,2]
[335880782,1724568640219,-500.0,0.00010958,2]
[335880783,1724568640230,-500.0,0.00010958,2]
[335880784,1724568640240,-500.0,0.00010958,2]
[335880785,1724568640249,-500.0,0.00010958,2]
[335880786,1724568640259,-500.0,0.00010958,2]
[335880787,1724568640269,-500.0,0.00010958,2]
[335880788,1724568640279,-500.0,0.00010958,2]
[335880789,1724568640288,-500.0,0.00010958,2]
[335880790,1724568640297,-500.0,0.00010958,2]
[335880791,1724568640306,-500.0,0.00010958,2]
[335880792,1724568640315,-500.0,0.00010958,2]
[335880793,1724568640324,-500.0,0.00010958,2]
[335880794,1724568640334,-500.0,0.00010958,2]
[335880795,1724568640343,-500.0,0.00010958,2]
[335880796,1724568640352,-512.11420963,0.00010958,2]
[335880797,1724568640361,-500.0,0.00010958,2]
[335880798,1724568640371,-500.0,0.00010958,2]
[335880799,1724568640380,-500.0,0.00010958,2]
[335880800,1724568640389,-500.0,0.00010958,2]
[335880801,1724568640399,-500.0,0.00010958,2]
[335880802,1724568640409,-500.0,0.00010958,2]
[335880803,1724568640418,-958.55,0.00010958,2]
[335880804,1724568640427,-958.55,0.00010958,2]
[335880805,1724568640436,-500.0,0.00010958,2]
[335880806,1724568640445,-500.0,0.00010958,2]
[335880807,1724568640455,-500.0,0.00010958,2]
[335880808,1724568640464,-500.0,0.00010958,2]
[335880809,1724568640474,-500.0,0.00010958,2]
[335880810,1724568640484,-500.0,0.00010958,2]
[335880811,1724568640492,-500.0,0.00010958,2]
[335880812,1724568640502,-284.76166286,0.00010958,2]
[335880813,1724568640510,-500.0,0.00010958,2]
[335880814,1724568640519,-500.0,0.00010958,2]
[335880815,1724568640528,-673.57,0.00010958,2]
[335880816,1724568640537,-673.57,0.00010958,2]
[335880817,1724568640545,-500.0,0.00010958,2]
[335880818,1724568640555,-521.02834033,0.00010958,2]
[335880819,1724568640565,-500.0,0.00010958,2]
[335880820,1724568640574,-500.0,0.00010958,2]
[335880821,1724568640583,-500.0,0.00010958,2]
[335880822,1724568640592,-500.0,0.00010958,2]
[335880823,1724568640601,-500.0,0.00010958,2]
[335880824,1724568640610,-500.0,0.00010958,2]
[335880825,1724568640619,-500.0,0.00010958,2]
[335880826,1724568640628,-500.0,0.00010958,2]
[335880827,1724568640637,-500.0,0.00010958,2]
[335880828,1724568640646,-500.0,0.00010958,2]
[335880829,1724568640655,-500.0,0.00010958,2]
[335880830,1724568640665,-500.0,0.00010958,2]
[335880831,1724568640673,-500.0,0.00010958,2]
[335880832,1724568640682,-500.0,0.00010958,2]
[335880833,1724568640692,-500.0,0.00010958,2]
[335880834,1724568640701,-500.0,0.00010958,2]
[335880835,1724568640710,-500.0,0.00010958,2]
[335880836,1724568640719,-500.0,0.00010958,2]
[335880837,1724568640728,-553.11,0.00010958,2]
[335880838,1724568640737,-553.11,0.00010958,2]
[335880839,1724568640746,-500.0,0.00010958,2]
[335880840,1724568640755,-500.0,0.00010958,2]
[335880841,1724568640763,-500.0,0.00010958,2]
[335880842,1724568640773,-500.0,0.00010958,2]
[335880843,1724568640782,-500.0,0.00010958,2]
[335880844,1724568640791,-500.0,0.00010958,2]
[335880845,1724568640800,-500.0,0.00010958,2]
[335880846,1724568640810,-500.0,0.00010958,2]
[335880847,1724568640819,-500.0,0.00010958,2]
[335880848,1724568640828,-500.0,0.00010958,2]
[335880849,1724568640837,-500.0,0.00010958,2]
[335880850,1724568640846,-746.44,0.00010958,2]
[335880851,1724568640856,-500.0,0.00010958,2]